[Event "Gaprindashvili Cup Women I Stage 2020"]
[Site "Online"]
[Date "2020.11.04"]
[Round "2.4"]
[White "Tsotsonava, Elene"]
[Black "Asatiani, Tamar"]
[Result "1-0"]
[ECO "C86"]
[WhiteElo "1805"]
[BlackElo "1004"]
[Annotator "NA RC"]
[PlyCount "119"]
[EventDate "2020.11.04"]
[EventType "swiss"]
[SourceTitle "playchess.com"]
[Source "ChessBase"]
[SourceQuality "1"]
[TimeControl "1500+5"]

1. e4 {[%emt 0:00:02]} e5 {[%emt 0:00:03]} 2. Nf3 {[%emt 0:00:06]} Nc6 {[%emt 0:00:02]} 3. Bb5 {[%emt 0:00:06]} a6 {[%emt 0:00:03]} 4. Ba4 {[%emt 0:00:02]} Nf6 {[%emt 0:00:06]} 5. Qe2 {[%emt 0:00:16]} d6 {[%emt 0:00:23]} (5... b5 $5 6. Bb3 $8 Be7 $11) 6. h3 {[%emt 0:00:18]} Be7 {[%emt 0:00:03]} (6... b5 $5 7. Bb3 $8 Be7 $11) 7. c3 {[%emt 0:00:05]} Bd7 {[%emt 0:00:08]} 8. O-O {[%emt 0:00:11]} O-O {[%emt 0:00:02]} 9. Bb3 {[%emt 0:00:12] C86: Closed Ruy Lopez: Worrall Attack.} Na5 {[%emt 0:00:26]} 10. Bc2 {[%emt 0:00:08] [#]} Bb5 $146 {[%emt 0:00:35]} ({Predecessor:} 10... c5 11. d4 Qc7 12. Bg5 exd4 13. cxd4 Bb5 14. Bd3 c4 15. Qc2 Qd8 16. Be2 Nxe4 17. Bxe7 Qxe7 {1-0 (48) Pejko,O (2231)-Gerbery,R (2199) Slovakia 2006}) 11. d3 {[%emt 0:00:06]} c5 {[%emt 0:01:06]} 12. b4 {[%emt 0:00:47]} cxb4 {[%emt 0:00:05]} 13. cxb4 {[%emt 0:00:03]} Nc6 {[%emt 0:00:22]} 14. a4 {[%emt 0:00:03]} Bxd3 {[%emt 0:00:25]} 15. Bxd3 {[%emt 0:00:21]} Nxb4 {[%emt 0:00:03]} 16. Ba3 {[%emt 0:00:19]} Nxd3 {[%emt 0:00:27]} 17. Qxd3 {[%emt 0:00:05]} Rc8 {[%emt 0:00:12]} 18. Nbd2 {[%emt 0:00:20]} Qd7 {[%emt 0:00:55]} 19. Qb3 {[%emt 0:02:27]} Rfe8 {[%emt 0:01:58]} 20. Rfd1 {[%emt 0:00:12]} Qc6 $2 {[%emt 0:00:28]} (20... b5 21. axb5 axb5) 21. Rac1 {[%emt 0:00:19]} Qd7 {[%emt 0:00:04]} 22. Nc4 {[%emt 0:01:15]} Nxe4 {[%emt 0:00:36]} 23. Nb6 {[%emt 0:00:07] Double Attack} Qf5 {[%emt 0:01:40]} 24. Nxc8 {[%emt 0:00:10]} Rxc8 {[%emt 0:00:02]} 25. Rxc8+ {[%emt 0:00:09]} Qxc8 {[%emt 0:00:03]} 26. Rc1 {[%emt 0:00:28]} Qd7 {[%emt 0:00:25]} 27. Qc2 {[%emt 0:00:06]} Nc5 {[%emt 0:00:40] [#]} 28. Nxe5 $1 {[%emt 0:00:15]} Qe6 {[%emt 0:00:43]} 29. Nd3 {[%emt 0:00:10]} b6 {[%emt 0:00:30]} 30. Re1 {[%emt 0:00:04]} Qf6 {[%emt 0:00:39]} 31. Nxc5 {[%emt 0:00:15]} bxc5 {[%emt 0:00:07]} 32. Bb2 {[%emt 0:00:03]} Qg5 {[%emt 0:00:12]} 33. Qc3 {[%emt 0:00:19]} h6 {[%emt 0:00:18]} 34. Rxe7 {[%emt 0:00:15]} Kf8 {[%emt 0:01:18]} 35. Qe3 {[%emt 0:00:31]} Qxe7 {[%emt 0:00:06] [#]} 36. Bxg7+ $18 {[%emt 0:00:10] Double Attack} Ke8 {[%emt 0:00:02]} 37. Qxe7+ {[%emt 0:00:25]} Kxe7 {[%emt 0:00:02]} 38. Kf1 {[%emt 0:00:01]} h5 {[%emt 0:00:03]} 39. Ke2 {[%emt 0:00:05]} Ke6 {[%emt 0:00:02]} 40. Kd3 {[%emt 0:00:03]} d5 {[%emt 0:00:05]} 41. Bf8 {[%emt 0:00:11]} c4+ {[%emt 0:00:06]} 42. Kd4 {[%emt 0:00:04]} f5 {[%emt 0:00:11]} 43. Bb4 {[%emt 0:00:09]} f4 {[%emt 0:00:13]} 44. f3 {[%emt 0:00:02]} Kd7 {[%emt 0:00:10]} 45. Kxd5 {[%emt 0:00:03]} Kc7 {[%emt 0:00:12]} 46. Bd6+ {[%emt 0:00:14]} Kd7 {[%emt 0:00:02]} 47. Bxf4 {[%emt 0:00:03]} c3 {[%emt 0:00:04]} 48. g4 {[%emt 0:00:02]} hxg4 {[%emt 0:00:16]} 49. fxg4 {[%emt 0:00:04]} Ke7 {[%emt 0:00:02]} 50. h4 {[%emt 0:00:01]} Kf6 {[%emt 0:00:02]} 51. Be5+ {[%emt 0:00:05]} Kg6 {[%emt 0:00:03]} 52. Bxc3 {[%emt 0:00:02]} Kh6 {[%emt 0:00:02]} 53. g5+ {[%emt 0:00:07]} Kg6 {[%emt 0:00:08]} 54. Ke6 {[%emt 0:00:02]} Kh7 {[%emt 0:00:04]} 55. Kf7 {[%emt 0:00:12]} a5 {[%emt 0:00:03]} 56. g6+ {[%emt 0:00:02]} Kh6 {[%emt 0:00:02]} 57. g7 {[%emt 0:00:03]} Kh5 {[%emt 0:00:02]} 58. g8=Q {[%emt 0:00:09]} Kxh4 {[%emt 0:00:02]} 59. Be1+ {[%emt 0:00:03]} Kh3 {[%emt 0:00:02]} 60. Qg3# {[%emt 0:00:02]} 1-0

[Event "Gaprindashvili Cup Women I Stage 2020"]
[Site "Online"]
[Date "2020.11.04"]
[Round "2.5"]
[White "Abuladze, Natali"]
[Black "Bedoshvili, Dea"]
[Result "0-1"]
[ECO "D30"]
[WhiteElo "1049"]
[BlackElo "1667"]
[Annotator "NA"]
[PlyCount "56"]
[EventDate "2020.11.04"]
[EventType "swiss"]
[SourceTitle "playchess.com"]
[Source "ChessBase"]
[SourceQuality "1"]
[TimeControl "1500+5"]

1. d4 {[%emt 0:00:53]} d5 {[%emt 0:00:03]} 2. c4 {[%emt 0:00:04]} c6 {[%emt 0:00:04]} 3. Nf3 {[%emt 0:00:06]} e6 {[%emt 0:00:05]} 4. e3 {[%emt 0:00:18]} Bd6 {[%emt 0:00:13]} 5. Nc3 {[%emt 0:00:28]} Nd7 {[%emt 0:00:03]} 6. h3 {[%emt 0:00:12]} f5 {[%emt 0:00:29]} 7. c5 {[%emt 0:00:58]} Bc7 {[%emt 0:00:05]} 8. b4 {[%emt 0:01:01]} Ngf6 {[%emt 0:00:39]} 9. Be2 {[%emt 0:00:42]} O-O {[%emt 0:00:04]} 10. Ng5 {[%emt 0:00:19]} Qe7 {[%emt 0:00:09]} 11. b5 {[%emt 0:00:47]} Ne4 {[%emt 0:00:20]} 12. Ngxe4 {[%emt 0:00:24]} fxe4 {[%emt 0:00:01]} 13. bxc6 {[%emt 0:00:19]} bxc6 {[%emt 0:00:23]} 14. Rb1 {[%emt 0:01:12]} e5 {[%emt 0:00:35]} 15. Qa4 {[%emt 0:00:45]} Rf6 {[%emt 0:01:18]} 16. Qb3 {[%emt 0:02:37]} Qf7 {[%emt 0:00:36]} 17. O-O {[%emt 0:00:58]} Nf8 {[%emt 0:00:28]} 18. Qd1 {[%emt 0:01:29]} Rg6 {[%emt 0:00:46]} 19. Kh1 {[%emt 0:01:59]} Rf6 {[%emt 0:00:33]} 20. Kg1 {[%emt 0:00:39]} Ne6 {[%emt 0:03:42]} 21. Qa4 {[%emt 0:02:54]} Bd7 {[%emt 0:02:44]} 22. Bd2 {[%emt 0:00:27]} Rf8 {[%emt 0:00:16]} 23. f3 {[%emt 0:01:55]} exf3 {[%emt 0:00:33]} 24. Rxf3 {[%emt 0:00:23]} Rxf3 {[%emt 0:02:06]} 25. Bxf3 {[%emt 0:00:05]} e4 {[%emt 0:00:30]} 26. Be2 {[%emt 0:00:07]} Qf2+ {[%emt 0:00:09]} 27. Kh1 {[%emt 0:00:07]} Qg3 {[%emt 0:00:04]} 28. Kg1 {[%emt 0:00:34]} Qh2# {[%emt 0:00:02]} 0-1

[Event "Gaprindashvili Cup Women I Stage 2020"]
[Site "Online"]
[Date "2020.11.04"]
[Round "2.7"]
[White "Limar, Maria"]
[Black "Sichinava, Mariam"]
[Result "0-1"]
[ECO "B42"]
[WhiteElo "1229"]
[BlackElo "1516"]
[Annotator "NA RC"]
[PlyCount "98"]
[EventDate "2020.11.04"]
[EventType "swiss"]
[SourceTitle "playchess.com"]
[Source "ChessBase"]
[SourceQuality "1"]
[TimeControl "1500+5"]

1. e4 {[%emt 0:00:04]} c5 {[%emt 0:00:03]} 2. Nf3 {[%emt 0:00:02]} e6 {[%emt 0:00:01]} 3. d4 {[%emt 0:00:04]} cxd4 {[%emt 0:00:02]} 4. Nxd4 {[%emt 0:00:02]} a6 {[%emt 0:00:01]} 5. c4 {[%emt 0:00:52]} Nf6 {[%emt 0:00:05]} 6. Bd3 {[%emt 0:00:39]} Qc7 {[%emt 0:00:08]} 7. O-O {[%emt 0:00:46]} Nc6 {[%emt 0:00:08]} 8. Be3 {[%emt 0:00:32]} Bd6 {[%emt 0:01:03]} 9. h3 {[%emt 0:00:15]} O-O {[%emt 0:00:20]} 10. Nc3 {[%emt 0:00:45]} Bf4 {[%emt 0:05:52]} 11. Bxf4 {[%emt 0:01:31]} Qxf4 {[%emt 0:00:06]} 12. Bc2 {[%emt 0:01:16]} Nb4 {[%emt 0:02:51]} 13. Bb1 {[%emt 0:01:03]} Qe5 {[%emt 0:01:02]} 14. a3 {[%emt 0:01:34]} Nc6 {[%emt 0:00:07]} 15. Nf3 {[%emt 0:00:49]} Qc7 {[%emt 0:00:40]} 16. Qd3 {[%emt 0:03:37]} b6 {[%emt 0:02:06]} 17. Re1 {[%emt 0:02:28]} d6 {[%emt 0:00:11]} 18. Bc2 {[%emt 0:02:00]} Bb7 {[%emt 0:00:23]} 19. Rad1 {[%emt 0:00:28]} Rfd8 {[%emt 0:00:06]} 20. Rd2 {[%emt 0:03:45]} Rac8 {[%emt 0:01:16]} 21. b3 {[%emt 0:00:34]} Rd7 {[%emt 0:01:39]} 22. Red1 {[%emt 0:00:26]} h6 {[%emt 0:00:14]} 23. Qe3 {[%emt 0:00:50]} Ba8 {[%emt 0:02:07]} 24. Nh2 {[%emt 0:01:03]} e5 {[%emt 0:03:23]} 25. Qg3 {[%emt 0:00:31]} Nd4 {[%emt 0:00:23]} 26. Ng4 {[%emt 0:00:47]} Nxg4 {[%emt 0:00:35]} 27. Qxg4 {[%emt 0:00:03]} Rdd8 {[%emt 0:00:08]} 28. Ne2 {[%emt 0:00:16]} Nxc2 {[%emt 0:00:50]} 29. Rxc2 {[%emt 0:00:02]} Qc6 {[%emt 0:00:18]} 30. Nc3 {[%emt 0:00:10]} Qc5 {[%emt 0:00:03]} 31. Ra2 {[%emt 0:00:09]} b5 {[%emt 0:00:29]} 32. Nd5 {[%emt 0:00:10]} Bxd5 {[%emt 0:00:03]} 33. Rxd5 {[%emt 0:00:03]} Qb6 {[%emt 0:00:33]} 34. cxb5 {[%emt 0:00:08]} axb5 {[%emt 0:00:01]} 35. Rad2 {[%emt 0:00:04]} Ra8 {[%emt 0:00:22]} 36. Ra2 {[%emt 0:00:05]} Qc6 {[%emt 0:00:08]} 37. Qe2 {[%emt 0:00:05]} Rdb8 {[%emt 0:00:08]} 38. Qd2 {[%emt 0:00:07]} b4 {[%emt 0:00:04]} 39. a4 {[%emt 0:00:03]} Rb6 {[%emt 0:00:04]} 40. Rc2 {[%emt 0:00:03]} Qd7 {[%emt 0:00:04]} 41. Rc4 {[%emt 0:00:03]} Rab8 {[%emt 0:00:03]} 42. Rxe5 {[%emt 0:00:04]} Qb7 {[%emt 0:00:09]} 43. Rd5 {[%emt 0:00:03]} Rc6 {[%emt 0:00:02]} 44. Rxd6 {[%emt 0:00:08]} Rxc4 {[%emt 0:00:03]} 45. bxc4 {[%emt 0:00:04]} b3 {[%emt 0:00:01]} 46. Qb2 {[%emt 0:00:06]} Qxe4 {[%emt 0:00:02]} 47. c5 {[%emt 0:00:07]} Qc2 {[%emt 0:00:03]} 48. Qe5 {[%emt 0:00:08]} b2 {[%emt 0:00:08]} 49. Rb6 {[%emt 0:00:06]} Rxb6 {[%emt 0:00:07]} 0-1

[Event "Gaprindashvili Cup Women I Stage 2020"]
[Site "Online"]
[Date "2020.11.04"]
[Round "2.8"]
[White "Tsetskhladze, Mariam"]
[Black "Didbaridze, Meri"]
[Result "1/2-1/2"]
[ECO "C11"]
[WhiteElo "1477"]
[BlackElo "1264"]
[Annotator "NA RC"]
[PlyCount "106"]
[EventDate "2020.11.04"]
[EventType "swiss"]
[SourceTitle "playchess.com"]
[Source "ChessBase"]
[SourceQuality "1"]
[TimeControl "1500+5"]

1. e4 {[%emt 0:00:02]} e6 {[%emt 0:00:04]} 2. Nf3 {[%emt 0:00:04]} d5 {[%emt 0:00:02]} 3. Nc3 {[%emt 0:00:02]} Nf6 {[%emt 0:00:17]} 4. e5 {[%emt 0:01:16]} Nfd7 {[%emt 0:00:04]} 5. d4 {[%emt 0:00:04]} Bb4 {[%emt 0:00:23]} 6. Be2 {[%emt 0:00:24]} b6 {[%emt 0:00:29]} 7. O-O {[%emt 0:00:09]} Ba6 {[%emt 0:00:31]} 8. Bxa6 {[%emt 0:00:43]} Nxa6 {[%emt 0:00:07]} 9. Be3 {[%emt 0:01:49]} Bxc3 {[%emt 0:00:35]} 10. bxc3 {[%emt 0:00:03]} c5 {[%emt 0:00:12]} 11. Ng5 {[%emt 0:00:20]} h6 {[%emt 0:00:17]} 12. Nh3 {[%emt 0:00:10]} Rc8 {[%emt 0:01:55]} 13. Qg4 {[%emt 0:00:15]} g6 {[%emt 0:01:09]} 14. Rac1 {[%emt 0:01:05]} cxd4 {[%emt 0:00:29]} 15. cxd4 {[%emt 0:02:57]} Nb4 {[%emt 0:00:35]} 16. Qe2 {[%emt 0:06:36]} Nxa2 {[%emt 0:02:47]} 17. Ra1 {[%emt 0:00:03]} Nc3 {[%emt 0:00:05]} 18. Qd2 {[%emt 0:00:04]} Ne4 {[%emt 0:00:21]} 19. Qc1 {[%emt 0:00:14]} Nc3 {[%emt 0:03:48]} 20. Qd2 {[%emt 0:00:39]} Ne4 {[%emt 0:04:54]} 21. Qc1 {[%emt 0:00:13]} Rc7 {[%emt 0:00:48]} 22. Bxh6 {[%emt 0:00:49]} Qh4 {[%emt 0:00:32]} 23. Bf4 {[%emt 0:00:38]} g5 {[%emt 0:01:58]} 24. Bxg5 {[%emt 0:00:48]} Nxg5 {[%emt 0:00:06]} 25. Qxg5 {[%emt 0:00:03]} Qxd4 {[%emt 0:00:22]} 26. Rfe1 {[%emt 0:00:08]} Qh4 {[%emt 0:00:36]} 27. Qg7 {[%emt 0:00:28]} Qh7 {[%emt 0:00:10]} 28. Qg5 {[%emt 0:00:26]} Rg8 {[%emt 0:00:07]} 29. Qe3 {[%emt 0:00:10]} Qg7 {[%emt 0:01:17]} 30. g3 {[%emt 0:00:13]} Nc5 {[%emt 0:00:44]} 31. Nf4 {[%emt 0:00:41]} Ne4 {[%emt 0:00:20]} 32. Nd3 {[%emt 0:00:05]} Rh8 {[%emt 0:00:18]} 33. Qd4 {[%emt 0:00:55]} Qh6 {[%emt 0:00:19]} 34. h4 {[%emt 0:00:13]} Rc4 {[%emt 0:00:08]} 35. Qb2 {[%emt 0:00:32]} Rc7 {[%emt 0:00:16]} 36. Qb5+ {[%emt 0:00:07]} Kd8 {[%emt 0:00:11]} 37. Nb4 {[%emt 0:00:10]} Ke7 {[%emt 0:00:27]} 38. Nc6+ {[%emt 0:00:07]} Kf8 {[%emt 0:00:02]} 39. Rxa7 {[%emt 0:00:16]} Rxa7 {[%emt 0:00:03]} 40. Nxa7 {[%emt 0:00:03]} Ng5 {[%emt 0:00:15]} 41. Kg2 {[%emt 0:00:15]} Ne4 {[%emt 0:00:05]} 42. Qxb6 {[%emt 0:00:16]} Rg8 {[%emt 0:00:13]} 43. Rh1 {[%emt 0:01:23]} Qd2 {[%emt 0:00:05]} 44. Rh3 {[%emt 0:01:19]} Qxc2 {[%emt 0:00:02]} 45. h5 {[%emt 0:00:29]} Kg7 {[%emt 0:00:04]} 46. h6+ {[%emt 0:00:08]} Kh7 {[%emt 0:00:02]} 47. Nb5 {[%emt 0:00:22]} Rb8 {[%emt 0:00:04]} 48. Qxb8 {[%emt 0:00:31]} Qxf2+ {[%emt 0:00:03]} 49. Kh1 {[%emt 0:00:04]} Qf1+ {[%emt 0:00:01]} 50. Kh2 {[%emt 0:00:01]} Qf2+ {[%emt 0:00:02]} 51. Kh1 {[%emt 0:00:02]} Qf1+ {[%emt 0:00:08]} 52. Kh2 {[%emt 0:00:01]} Qf2+ {[%emt 0:00:02]} 53. Kh1 {[%emt 0:00:02]} Nxg3+ {[%emt 0:00:05]} 1/2-1/2

[Event "Gaprindashvili Cup Women I Stage 2020"]
[Site "Online"]
[Date "2020.11.04"]
[Round "2.9"]
[White "Mgeladze, Kesaria"]
[Black "Kalandadze, Mariam"]
[Result "1-0"]
[ECO "B22"]
[WhiteElo "1380"]
[BlackElo "1147"]
[Annotator "NA RC"]
[PlyCount "85"]
[EventDate "2020.11.04"]
[EventType "swiss"]
[SourceTitle "playchess.com"]
[Source "ChessBase"]
[SourceQuality "1"]
[TimeControl "1500+5"]

1. e4 {[%emt 0:00:02]} c5 {[%emt 0:00:07]} 2. c3 {[%emt 0:00:02]} d5 {[%emt 0:00:06]} 3. exd5 {[%emt 0:00:02]} Qxd5 {[%emt 0:00:05]} 4. d4 {[%emt 0:00:03]} Nf6 {[%emt 0:00:02]} 5. Nf3 {[%emt 0:00:04]} Bg4 {[%emt 0:00:05]} 6. dxc5 {[%emt 0:00:02]} Qxc5 {[%emt 0:00:08]} 7. Be3 {[%emt 0:00:04]} Qc7 {[%emt 0:00:25]} 8. Na3 {[%emt 0:00:09]} a6 {[%emt 0:00:12]} 9. Be2 {[%emt 0:01:35]} e6 {[%emt 0:00:15]} 10. Nc2 {[%emt 0:00:30]} Nc6 {[%emt 0:00:22]} 11. h3 {[%emt 0:00:19]} Bh5 {[%emt 0:00:05]} 12. Nfd4 {[%emt 0:00:33]} Bxe2 {[%emt 0:01:10]} 13. Qxe2 {[%emt 0:00:03]} Be7 {[%emt 0:00:25]} 14. O-O {[%emt 0:00:51]} O-O {[%emt 0:00:11]} 15. Nxc6 {[%emt 0:00:16]} Qxc6 {[%emt 0:00:05]} 16. Rad1 {[%emt 0:00:24]} Rfd8 {[%emt 0:00:13]} 17. Nd4 {[%emt 0:02:13]} Qc7 {[%emt 0:00:21]} 18. g3 {[%emt 0:00:28]} Bc5 {[%emt 0:01:02]} 19. Bf4 {[%emt 0:01:04]} Qe7 {[%emt 0:02:50]} 20. Nb3 {[%emt 0:00:48]} Nd5 {[%emt 0:01:32]} 21. Be5 {[%emt 0:01:16]} Bd6 {[%emt 0:00:56]} 22. Bxd6 {[%emt 0:00:26]} Rxd6 {[%emt 0:00:10]} 23. c4 {[%emt 0:00:28]} Nf6 {[%emt 0:00:46]} 24. Rxd6 {[%emt 0:00:56]} Qxd6 {[%emt 0:00:25]} 25. Rd1 {[%emt 0:00:04]} Qe7 {[%emt 0:00:23]} 26. Qd3 {[%emt 0:01:05]} h6 {[%emt 0:00:47]} 27. Qf3 {[%emt 0:02:19]} Rc8 {[%emt 0:01:06]} 28. Qd3 {[%emt 0:01:44]} Rc7 {[%emt 0:01:35]} 29. Nd4 {[%emt 0:02:29]} Qc5 {[%emt 0:02:02]} 30. Nb3 {[%emt 0:01:47]} Qe7 {[%emt 0:01:26]} 31. Qe2 {[%emt 0:02:00]} Rd7 {[%emt 0:01:28]} 32. Qf3 {[%emt 0:01:09]} Rc7 {[%emt 0:01:50]} 33. Qe2 {[%emt 0:01:42]} Qb4 {[%emt 0:01:27]} 34. Qc2 {[%emt 0:00:17]} Rc8 {[%emt 0:00:53]} 35. Rd2 {[%emt 0:00:18]} g6 {[%emt 0:02:20]} 36. a3 {[%emt 0:00:04]} Qe7 {[%emt 0:00:26]} 37. Nd4 {[%emt 0:00:02]} Qc5 {[%emt 0:00:17]} 38. Nxe6 {[%emt 0:00:18]} fxe6 {[%emt 0:00:05]} 39. Qxg6+ {[%emt 0:00:03]} Kf8 {[%emt 0:00:04]} 40. Qxf6+ {[%emt 0:00:03]} Ke8 {[%emt 0:00:02]} 41. Qxe6+ {[%emt 0:00:03]} Qe7 {[%emt 0:00:03]} 42. Qxc8+ {[%emt 0:00:02]} Kf7 {[%emt 0:00:02]} 43. Rd7 {[%emt 0:00:01]} 1-0

[Event "Gaprindashvili Cup Women I Stage 2020"]
[Site "Online"]
[Date "2020.11.04"]
[Round "2.10"]
[White "Zarkua, Anastasia"]
[Black "Gvatua, Mariam"]
[Result "1-0"]
[ECO "A13"]
[WhiteElo "1124"]
[BlackElo "1343"]
[Annotator "NA RC"]
[PlyCount "147"]
[EventDate "2020.11.04"]
[EventType "swiss"]
[SourceTitle "playchess.com"]
[Source "ChessBase"]
[SourceQuality "1"]
[TimeControl "1500+5"]

1. Nf3 {[%emt 0:00:04]} d5 {[%emt 0:00:11]} 2. c4 {[%emt 0:00:05]} e6 {[%emt 0:00:05]} 3. g3 {[%emt 0:00:04]} Nf6 {[%emt 0:00:03]} 4. Bg2 {[%emt 0:00:08]} Bb4 {[%emt 0:00:03]} 5. a3 {[%emt 0:00:53]} Be7 {[%emt 0:00:04]} 6. O-O {[%emt 0:00:05]} O-O {[%emt 0:00:02]} 7. Qc2 {[%emt 0:00:02]} d4 {[%emt 0:00:06]} 8. d3 {[%emt 0:00:13]} c5 {[%emt 0:00:02]} 9. Bf4 {[%emt 0:00:20]} Nc6 {[%emt 0:00:04]} 10. Nbd2 {[%emt 0:00:06]} Bd6 {[%emt 0:00:07]} 11. Bxd6 {[%emt 0:00:04]} Qxd6 {[%emt 0:00:04]} 12. Rad1 {[%emt 0:00:23]} e5 {[%emt 0:00:11]} 13. Ng5 {[%emt 0:00:11]} b6 {[%emt 0:01:28]} 14. Nge4 {[%emt 0:00:30]} Nxe4 {[%emt 0:00:07]} 15. Nxe4 {[%emt 0:00:06]} Qc7 {[%emt 0:00:07]} 16. Qd2 {[%emt 0:01:13]} Bb7 {[%emt 0:00:41]} 17. b4 {[%emt 0:00:41]} Ne7 {[%emt 0:00:39]} 18. Qg5 {[%emt 0:01:33]} f5 {[%emt 0:01:10]} 19. Nd2 {[%emt 0:00:41]} Bxg2 {[%emt 0:00:43]} 20. Kxg2 {[%emt 0:00:06]} h6 {[%emt 0:00:27]} 21. Qh5 {[%emt 0:00:51]} f4 {[%emt 0:00:18]} 22. Nf3 {[%emt 0:02:24]} Rf5 {[%emt 0:00:36]} 23. Qh3 {[%emt 0:00:31]} Raf8 {[%emt 0:00:23]} 24. Kg1 {[%emt 0:00:30]} fxg3 {[%emt 0:01:58]} 25. hxg3 {[%emt 0:00:32]} Ng6 {[%emt 0:00:11]} 26. Nh4 {[%emt 0:00:24]} Nxh4 {[%emt 0:00:28]} 27. Qxh4 {[%emt 0:00:12]} Qf7 {[%emt 0:00:06]} 28. Qh2 {[%emt 0:00:46]} Rh5 {[%emt 0:00:41]} 29. Qg2 {[%emt 0:00:05]} Qg6 {[%emt 0:00:30]} 30. Rb1 {[%emt 0:01:52]} Qg4 {[%emt 0:00:45]} 31. Rb2 {[%emt 0:01:06]} Rhf5 {[%emt 0:00:42]} 32. Qd5+ {[%emt 0:01:30]} Kh7 {[%emt 0:00:09]} 33. Qg2 {[%emt 0:00:28]} Kh8 {[%emt 0:00:33]} 34. Qe4 {[%emt 0:01:21]} Qh3 {[%emt 0:00:59]} 35. Qg2 {[%emt 0:00:10]} Qg4 {[%emt 0:00:06]} 36. Qe4 {[%emt 0:00:39]} Qg5 {[%emt 0:00:03]} 37. Qg2 {[%emt 0:00:08]} Qe7 {[%emt 0:00:28]} 38. Rb3 {[%emt 0:00:29]} Qf7 {[%emt 0:00:31]} 39. bxc5 {[%emt 0:00:28]} bxc5 {[%emt 0:00:09]} 40. Rb7 {[%emt 0:00:09]} Qg6 {[%emt 0:00:14]} 41. Rxa7 {[%emt 0:00:24]} Qb6 {[%emt 0:00:35]} 42. Ra8 {[%emt 0:00:12]} Qb2 {[%emt 0:00:41]} 43. Rxf8+ {[%emt 0:00:11]} Rxf8 {[%emt 0:00:04]} 44. Qe4 {[%emt 0:00:15]} Re8 {[%emt 0:00:17]} 45. a4 {[%emt 0:00:09]} Qb6 {[%emt 0:00:13]} 46. Qd5 {[%emt 0:01:11]} Rd8 {[%emt 0:00:14]} 47. Qxe5 {[%emt 0:00:08]} Qc6 {[%emt 0:00:23]} 48. a5 {[%emt 0:00:18]} Re8 {[%emt 0:00:05]} 49. Qd5 {[%emt 0:00:09]} Qxd5 {[%emt 0:00:28]} 50. cxd5 {[%emt 0:00:03]} Kg8 {[%emt 0:00:05]} 51. Rc1 {[%emt 0:00:21]} Rc8 {[%emt 0:00:22]} 52. a6 {[%emt 0:00:17]} Kf7 {[%emt 0:00:13]} 53. Rb1 {[%emt 0:00:11]} Ra8 {[%emt 0:00:20]} 54. Rb6 {[%emt 0:00:27]} Ke7 {[%emt 0:00:17]} 55. e3 {[%emt 0:00:31]} dxe3 {[%emt 0:00:07]} 56. fxe3 {[%emt 0:00:02]} Kd7 {[%emt 0:00:21]} 57. e4 {[%emt 0:00:07]} Kc7 {[%emt 0:00:09]} 58. Rc6+ {[%emt 0:00:11]} Kd7 {[%emt 0:00:02]} 59. e5 {[%emt 0:00:11]} Ra7 {[%emt 0:00:12]} 60. Rb6 {[%emt 0:00:10]} Kc8 {[%emt 0:00:18]} 61. d6 {[%emt 0:00:10]} Rd7 {[%emt 0:00:36]} 62. e6 {[%emt 0:00:07]} Ra7 {[%emt 0:00:05]} 63. e7 {[%emt 0:00:04]} Kd7 {[%emt 0:00:05]} 64. Rb7+ {[%emt 0:00:03]} Rxb7 {[%emt 0:00:02]} 65. axb7 {[%emt 0:00:02]} c4 {[%emt 0:00:03]} 66. dxc4 {[%emt 0:00:05]} g5 {[%emt 0:00:06]} 67. e8=Q+ {[%emt 0:00:07]} Kxe8 {[%emt 0:00:03]} 68. b8=Q+ {[%emt 0:00:03]} Kf7 {[%emt 0:00:02]} 69. d7 {[%emt 0:00:04]} g4 {[%emt 0:00:05]} 70. d8=Q {[%emt 0:00:04]} h5 {[%emt 0:00:01]} 71. Qbd6 {[%emt 0:00:04]} h4 {[%emt 0:00:02]} 72. Q8d7+ {[%emt 0:00:01]} Kg8 {[%emt 0:00:02]} 73. Qg6+ {[%emt 0:00:02]} Kh8 {[%emt 0:00:02]} 74. Qgh7# {[%emt 0:00:02]} 1-0

[Event "Gaprindashvili Cup Women I Stage 2020"]
[Site "Online"]
[Date "2020.11.04"]
[Round "2.11"]
[White "Limar, Ana"]
[Black "Ashotia, Barbare"]
[Result "0-1"]
[ECO "C88"]
[WhiteElo "1312"]
[BlackElo "1076"]
[Annotator "NA RC"]
[PlyCount "86"]
[EventDate "2020.11.04"]
[EventType "swiss"]
[SourceTitle "playchess.com"]
[Source "ChessBase"]
[SourceQuality "1"]
[TimeControl "1500+5"]

1. e4 {[%emt 0:00:02]} e5 {[%emt 0:00:06]} 2. Nf3 {[%emt 0:00:05]} Nc6 {[%emt 0:00:06]} 3. Bb5 {[%emt 0:00:04]} a6 {[%emt 0:00:04]} 4. Ba4 {[%emt 0:00:03]} Nf6 {[%emt 0:00:09]} 5. d3 {[%emt 0:00:06]} b5 {[%emt 0:00:15]} 6. Bb3 {[%emt 0:00:04]} Be7 {[%emt 0:00:49]} 7. O-O {[%emt 0:00:17]} O-O {[%emt 0:00:29]} 8. Re1 {[%emt 0:02:13]} h6 {[%emt 0:02:07]} 9. d4 {[%emt 0:00:30]} exd4 {[%emt 0:01:00]} 10. Nxd4 {[%emt 0:00:13]} Nxd4 {[%emt 0:00:10]} 11. Qxd4 {[%emt 0:00:08]} c5 {[%emt 0:00:02]} 12. Qd3 {[%emt 0:03:23]} c4 {[%emt 0:00:50]} 13. Qg3 {[%emt 0:00:31]} Kh7 {[%emt 0:00:10]} 14. e5 {[%emt 0:00:14]} Nd5 {[%emt 0:01:04]} 15. Qf3 {[%emt 0:00:52]} Bb7 {[%emt 0:00:46]} 16. Qe4+ {[%emt 0:00:09]} g6 {[%emt 0:00:31]} 17. Bxc4 {[%emt 0:00:21]} bxc4 {[%emt 0:00:03]} 18. Qxc4 {[%emt 0:00:03]} Rc8 {[%emt 0:00:51]} 19. Qb3 {[%emt 0:00:24]} Nb4 {[%emt 0:00:47]} 20. c3 {[%emt 0:01:13]} Qc7 {[%emt 0:01:26]} 21. Bxh6 {[%emt 0:01:25]} Kxh6 {[%emt 0:00:38]} 22. cxb4 {[%emt 0:00:12]} Qc2 {[%emt 0:01:27]} 23. Qh3+ {[%emt 0:00:43]} Kg7 {[%emt 0:00:03]} 24. Qxd7 {[%emt 0:00:24]} Qxb2 {[%emt 0:00:11]} 25. Qxb7 {[%emt 0:03:05]} Qxa1 {[%emt 0:00:10]} 26. Qxe7 {[%emt 0:00:13]} Qxa2 {[%emt 0:00:08]} 27. Qf6+ {[%emt 0:00:22]} Kg8 {[%emt 0:00:07]} 28. e6 {[%emt 0:01:59]} Rce8 {[%emt 0:00:40]} 29. e7 {[%emt 0:01:15]} Kh7 {[%emt 0:00:37]} 30. Qh4+ {[%emt 0:00:11]} Kg8 {[%emt 0:00:19]} 31. exf8=Q+ {[%emt 0:00:12]} Rxf8 {[%emt 0:00:02]} 32. Qf6 {[%emt 0:00:58]} Qc4 {[%emt 0:01:01]} 33. Qb6 {[%emt 0:01:37]} Rc8 {[%emt 0:00:37]} 34. Nd2 {[%emt 0:00:43]} Qf4 {[%emt 0:01:49]} 35. Nf3 {[%emt 0:00:43]} Rb8 {[%emt 0:00:48]} 36. Qxa6 {[%emt 0:00:15]} Qxb4 {[%emt 0:00:09]} 37. Qf6 {[%emt 0:00:48]} Rc8 {[%emt 0:00:41]} 38. h3 {[%emt 0:00:53]} Qc3 {[%emt 0:01:34]} 39. Qe7 {[%emt 0:00:25]} Qc7 {[%emt 0:00:55]} 40. Qf6 {[%emt 0:00:20]} Qc3 {[%emt 0:00:06]} 41. Qf4 {[%emt 0:00:16]} Qc7 {[%emt 0:00:26]} 42. Qh6 {[%emt 0:00:12]} Qc3 {[%emt 0:01:00]} 43. Re7 {[%emt 0:00:20]} Qg7 {[%emt 0:00:31]} 0-1